bitfinex-derivatives/quotes_BNBF0:USTF0_20250710
["timestamp","ask_amount","ask_price","bid_price","bid_amount"]
[1752172994303,1.65502363,674.28,673.96,0.99192578]
[1752172994496,1.65502363,674.29,673.97,0.99192578]
[1752172994701,1.65502363,674.29,673.98,0.99192578]
[1752172994899,1.65502363,674.29,673.99,0.99192578]
[1752172995103,1.65502363,674.29,674.0,0.99192578]
[1752172995303,1.65502363,674.29,674.01,0.99192578]
[1752172995503,1.65502363,674.29,674.02,0.99192578]
[1752172995704,1.65502363,674.29,674.03,0.99192578]
[1752172996001,1.65502363,674.29,674.04,0.99192578]
[1752172996204,1.65502363,674.29,674.05,0.99192578]
[1752172996401,1.65502363,674.29,674.06,0.99192578]
[1752172996705,1.65502363,674.29,674.07,0.99192578]
[1752172996901,1.65502363,674.25,673.98,1.486]
[1752172997105,1.65502363,674.27,673.99,0.99164679]
[1752172997300,1.65502363,674.28,674.0,0.99164679]
[1752172997504,1.65502363,674.28,674.01,0.99164679]
[1752172997702,1.65502363,674.28,674.02,0.99164679]
[1752172997905,1.65502363,674.31,674.03,0.99164679]
[1752172998106,1.65502363,674.31,673.98,1.486]
[1752172998107,1.65502363,674.31,674.04,0.99164679]
[1752172998301,1.65502363,674.36,674.05,0.99164679]
[1752172998502,1.65502363,674.37,674.06,0.99164679]
[1752172998706,1.65502363,674.37,674.07,0.99164679]
[1752172999006,1.65502363,674.37,674.08,0.99164679]
[1752172999206,1.65502363,674.37,674.09,0.99164679]
[1752172999506,1.65502363,674.38,674.1,0.99164679]
[1752172999804,1.65502363,674.38,674.11,0.99164679]
[1752173000006,1.65502363,674.38,674.12,0.99164679]
[1752173000202,1.65502363,674.38,674.13,0.99164679]
[1752173000406,1.65502363,674.39,674.14,0.99164679]
[1752173000604,1.65502363,674.39,674.15,0.99164679]
[1752173000808,1.65502363,674.39,673.98,1.486]
[1752173001008,1.65502363,674.39,673.99,0.99101896]
[1752173001210,1.65502363,674.39,674.0,0.99101896]
[1752173001409,1.65502363,674.39,674.01,0.99101896]
[1752173001609,1.65502363,674.39,673.98,1.486]
[1752173001610,1.65502363,674.39,674.02,0.99101896]
[1752173001909,1.65502363,674.39,674.03,0.99101896]
[1752173002105,1.65502363,674.39,674.04,0.99101896]
[1752173002310,1.65502363,674.4,673.98,1.486]
[1752173004509,1.65502363,674.36,673.98,1.486]
[1752173004706,1.65502363,674.43,673.98,1.486]
[1752173005306,1.65502363,674.44,673.98,1.486]
[1752173006209,1.65502363,674.45,673.98,1.486]
[1752173007813,1.65502363,674.47,673.98,1.486]
[1752173009412,1.91316472,674.52,673.98,1.486]
[1752173010715,1.91155234,674.52,673.98,1.486]
[1752173011117,1.65341125,674.42,673.98,1.486]
[1752173011415,1.65341125,674.4,673.98,1.486]
[1752173012114,1.65341125,674.36,673.98,1.486]
[1752173012315,1.65341125,674.34,673.98,1.486]
[1752173013915,1.65341125,674.33,673.98,1.486]
[1752173014314,1.65341125,674.3,673.98,1.486]
[1752173015015,1.65341125,674.24,673.98,1.486]
[1752173015418,1.65341125,674.22,673.98,1.486]
[1752173015614,1.65341125,674.21,673.98,1.486]
[1752173018323,1.65341125,674.2,673.98,1.486]
[1752173020220,1.65341125,674.19,673.98,1.486]
[1752173020824,1.65341125,674.2,673.98,1.486]
[1752173021521,1.65341125,674.18,673.98,1.486]
[1752173022121,1.23558265,674.31,673.98,1.486]
[1752173022122,1.65341125,674.17,673.98,1.486]
[1752173023324,1.65341125,674.16,673.98,1.486]
[1752173024828,1.65341125,674.17,673.98,1.486]
[1752173030228,1.65341125,674.22,673.98,1.486]
[1752173034532,1.65341125,674.23,673.98,1.486]
[1752173034929,1.65341125,674.17,673.98,1.486]
[1752173035233,1.65341125,674.15,673.98,1.486]
[1752173035734,1.65341125,674.11,673.98,1.486]
[1752173037931,1.65341125,674.11,673.34,1.9193832]
[1752173038333,1.65341125,674.12,673.34,0.25822249]
[1752173041540,1.65341125,674.12,673.35,1.358]
[1752173042142,0.25816694,674.25,673.35,1.358]
[1752173042346,1.6521198,674.12,673.35,1.358]
[1752173043138,1.6521198,674.13,673.35,1.358]
[1752173044440,1.6521198,674.12,673.35,1.358]
[1752173045241,1.6521198,674.11,673.35,1.358]
[1752173048442,1.6521198,674.12,673.35,1.358]
[1752173050243,1.6521198,674.13,673.35,1.358]
[1752173050748,1.6521198,674.12,673.35,1.358]
[1752173050948,1.6521198,674.13,673.35,1.358]
[1752173054246,1.6521198,674.12,673.35,1.358]
[1752173054750,1.6521198,674.13,673.35,1.358]
[1752173055647,1.6521198,674.13,673.34,0.25822249]
[1752173058752,1.6521198,674.12,673.35,1.875]
[1752173060854,1.6521198,674.11,673.35,1.875]
[1752173061250,1.6521198,674.1,673.35,1.875]
[1752173062356,1.6521198,674.1,673.35,3.53658971]
[1752173063352,1.6521198,674.11,673.35,1.875]
[1752173064358,1.6521198,674.1,673.35,1.875]
[1752173064757,1.23761004,674.23,673.35,1.875]
[1752173064758,1.6521198,674.09,673.35,1.875]
[1752173065455,1.6521198,674.08,673.35,3.53658971]
[1752173065859,1.6521198,674.08,673.35,1.875]
[1752173066156,1.6521198,674.09,673.35,1.875]
[1752173066358,1.6521198,674.08,673.35,3.53658971]
[1752173067255,1.6521198,674.07,673.36,1.66158971]
[1752173068358,1.6521198,674.07,673.35,1.875]
[1752173068359,1.6521198,674.07,673.37,1.66158971]
[1752173069059,1.6521198,674.06,673.37,1.66158971]
[1752173069463,1.6521198,674.05,673.39,1.66158971]
[1752173070359,1.6521198,674.04,673.4,1.66158971]
[1752173070559,1.6521198,674.04,673.39,1.66158971]
[1752173070759,1.6521198,674.05,673.4,1.66158971]
[1752173071260,1.6521198,674.04,673.4,1.66158971]
[1752173072264,1.6521198,674.03,673.41,1.66158971]
[1752173073261,1.6521198,674.03,673.42,1.66158971]
[1752173073468,1.6521198,674.02,673.43,1.66158971]
[1752173073762,1.6521198,674.03,673.42,1.66158971]
[1752173073963,1.6521198,674.03,673.43,1.66158971]
[1752173074368,1.6521198,674.02,673.43,1.66158971]
[1752173075366,1.6521198,673.97,673.39,1.66158971]
[1752173075768,1.6521198,673.97,673.4,1.66158971]
[1752173075963,1.6521198,674.02,673.35,1.875]
[1752173078464,1.6521198,673.99,673.35,1.875]
[1752173079165,1.6521198,674.0,673.35,1.875]
[1752173082073,1.6521198,673.99,673.35,1.875]
[1752173082373,1.6521198,674.01,673.35,1.875]
[1752173083172,1.6521198,674.0,673.35,1.875]
[1752173083770,1.6521198,674.01,673.35,1.875]
[1752173085877,1.6521198,673.97,673.37,1.66158971]
[1752173086377,1.6521198,673.95,673.4,1.66158971]
[1752173087276,1.6521198,673.97,673.43,1.66158971]
[1752173087975,1.6521198,673.97,673.44,1.66158971]
[1752173089477,1.6521198,673.96,673.45,1.66158971]
[1752173090876,1.6521198,673.97,673.46,1.66158971]
[1752173091079,1.6521198,673.98,673.44,1.66158971]
[1752173091276,1.6521198,673.98,673.45,1.66158971]
[1752173091681,1.6521198,673.98,673.44,1.66158971]
[1752173091979,1.6521198,674.06,673.45,1.66158971]
[1752173093080,1.6521198,674.06,673.46,1.66158971]
[1752173093283,1.6521198,674.06,673.46,3.26858971]
[1752173093578,1.6521198,674.05,673.46,3.26858971]
[1752173094280,1.6521198,674.05,673.47,1.66158971]
[1752173094481,1.6521198,674.05,673.46,3.26858971]
[1752173096383,1.6521198,674.05,673.47,1.66158971]
[1752173096580,1.6521198,674.06,673.47,1.66158971]
[1752173098585,1.6521198,674.06,673.46,3.26858971]
[1752173099085,1.6521198,674.06,673.47,1.66158971]
[1752173099389,1.6521198,674.09,673.49,1.66158971]
[1752173099588,1.6521198,674.08,673.49,1.66158971]
[1752173099888,1.6521198,674.14,673.55,1.66158971]
[1752173100086,0.25816694,674.25,673.46,1.607]
[1752173100087,1.6521198,674.16,673.57,1.66158971]
[1752173101593,0.25816694,674.25,673.46,1.607]
[1752173101594,1.6521198,674.13,673.61,1.66158971]
[1752173101791,1.6521198,674.14,673.61,1.66158971]
[1752173101993,1.6521198,674.22,673.49,1.66158971]
[1752173102394,1.6521198,674.23,673.48,1.66158971]
[1752173103095,1.6521198,674.22,673.48,1.66158971]
[1752173103397,1.6521198,674.23,673.47,1.66158971]
[1752173104396,1.6521198,674.24,673.47,1.66158971]
[1752173105296,1.6521198,674.24,673.46,3.26858971]
[1752173106496,1.91028674,674.25,673.46,3.26858971]
[1752173107503,1.91028674,674.25,673.46,1.607]
[1752173108303,1.91028674,674.25,673.45,1.66158971]
[1752173111206,0.25816694,674.25,673.45,1.66158971]
[1752173111403,0.25816694,674.25,673.44,1.66158971]
[1752173111803,1.6521198,674.18,673.56,1.66158971]
[1752173112003,0.25816694,674.25,673.45,1.701]
[1752173112004,1.6521198,674.19,673.54,1.66158971]
[1752173112209,1.6521198,674.2,673.54,1.66158971]
[1752173113208,1.6521198,674.2,673.45,1.701]
[1752173113209,1.6521198,674.2,673.53,1.66158971]
[1752173115708,1.6521198,674.21,673.52,1.66158971]
[1752173116012,1.6521198,674.21,673.51,1.66158971]
[1752173116209,1.6521198,674.22,673.51,1.66158971]
[1752173119015,1.6521198,674.22,673.5,1.66158971]
[1752173120317,1.6521198,674.23,673.5,1.66158971]
[1752173120818,1.6521198,674.2,673.55,1.66158971]
[1752173121118,1.6521198,674.2,673.45,1.701]
[1752173121119,1.6521198,674.21,673.53,1.66158971]
[1752173121918,1.6521198,674.2,673.54,1.66158971]
[1752173122721,1.6521198,674.18,673.5,1.66158971]
[1752173124919,1.6521198,674.18,673.47,1.66158971]
[1752173125324,1.6521198,674.19,673.47,1.66158971]
[1752173125525,1.6521198,674.18,673.47,1.66158971]
[1752173125721,1.6521198,674.09,673.45,1.701]
[1752173126832,1.6521198,674.08,673.45,1.701]
[1752173127332,1.6521198,674.14,673.45,1.701]
[1752173130036,0.25816694,674.25,673.45,1.701]
[1752173130037,1.6521198,674.09,673.45,1.701]
[1752173130333,1.6521198,674.1,673.45,1.701]
[1752173131834,1.6521198,674.09,673.45,1.701]
[1752173133534,1.6521198,674.08,673.45,1.701]
[1752173136644,1.6521198,674.19,673.45,1.701]
[1752173136844,1.6521198,674.21,673.45,1.701]
[1752173137441,0.25816694,674.25,673.45,1.701]
[1752173138442,1.6521198,674.23,673.47,1.66158971]
[1752173139043,1.6521198,674.24,673.48,1.66158971]
[1752173139244,1.6521198,674.23,673.5,1.66158971]
[1752173139540,0.25816694,674.25,673.56,1.66158971]
[1752173140439,0.25816694,674.25,673.45,1.701]
[1752173140440,0.25816694,674.25,673.55,1.66158971]
[1752173141145,0.25816694,674.25,673.45,1.701]
[1752173141146,0.25816694,674.25,673.56,1.66158971]
[1752173141339,0.25816694,674.25,673.55,1.66158971]
[1752173142240,0.25816694,674.25,673.56,1.66158971]
[1752173142842,0.25816694,674.25,673.55,1.66158971]
[1752173143246,0.25816694,674.25,673.56,1.66158971]
[1752173144142,0.25816694,674.25,673.58,1.66158971]
[1752173144944,0.25816694,674.25,673.6,1.66158971]
[1752173146049,1.91028674,674.25,673.62,1.66158971]
[1752173146344,1.6521198,674.24,673.62,1.66158971]
[1752173146549,1.91028674,674.25,673.62,1.66158971]
[1752173147352,1.91028674,674.25,673.61,1.66158971]
[1752173147851,1.6521198,674.24,673.62,1.66158971]
[1752173148248,1.6521198,674.24,673.63,1.66158971]
[1752173148453,1.6521198,674.24,673.62,1.66158971]
[1752173148652,1.91028674,674.25,673.62,1.66158971]
[1752173148852,1.6521198,674.24,673.62,1.66158971]
[1752173150451,1.6521198,674.24,673.63,1.66158971]
[1752173151548,0.25816694,674.25,673.67,1.66158971]
[1752173153755,0.25816694,674.25,673.61,1.66158971]
[1752173156953,1.6521198,674.32,673.61,1.66158971]
[1752173158261,1.6521198,674.32,673.6,1.66158971]
[1752173158461,1.6521198,674.32,673.61,1.66158971]
[1752173158959,0.2581679,674.35,673.65,1.66158971]
[1752173161764,0.2581679,674.35,673.64,1.66158971]
[1752173163661,0.2581679,674.35,673.68,1.66158971]
[1752173164266,1.9102877,674.35,673.69,1.66158971]
[1752173167264,0.2581679,674.35,673.68,1.66158971]
[1752173168064,1.9102877,674.35,673.7,1.66158971]
[1752173169365,1.6521198,674.34,673.71,1.66158971]
[1752173170066,0.258143,674.43,673.57,2.21203397]
[1752173170364,0.258143,674.43,673.74,1.66217429]
[1752173170365,1.6549114,674.4,673.74,1.66217429]
[1752173173069,1.6549114,674.4,673.75,1.459]
[1752173173366,1.6549114,674.41,673.75,1.459]
[1752173174067,1.6549114,674.4,673.75,1.459]
[1752173175464,1.6549114,674.41,673.75,1.459]
[1752173176168,0.258143,674.43,673.75,1.459]
[1752173185877,1.9130544,674.43,673.75,1.459]
[1752173191280,1.65409277,674.42,673.75,1.459]
[1752173192486,1.65409277,674.41,673.75,1.459]
[1752173192983,1.65409277,674.39,673.75,3.12012119]
[1752173193385,1.65409277,674.4,673.75,1.459]
[1752173193587,1.65409277,674.42,673.75,1.459]
[1752173195587,1.65409277,674.41,673.75,1.459]
[1752173196386,1.65409277,674.39,673.75,1.459]
[1752173197386,1.65409277,674.35,673.75,1.459]
[1752173197584,0.258143,674.43,673.75,1.459]
[1752173197585,1.65409277,674.31,673.75,1.459]
[1752173197989,1.65409277,674.24,673.75,1.459]
[1752173198493,1.65409277,674.23,673.75,1.459]
[1752173198790,1.65409277,674.25,673.75,1.459]
[1752173202595,1.65409277,674.21,673.75,1.459]
[1752173203196,1.65409277,674.22,673.75,1.459]
[1752173203398,1.65409277,674.17,673.75,1.459]
[1752173205294,1.65409277,674.19,673.75,1.459]
[1752173207196,1.65409277,674.2,673.75,1.459]
[1752173209202,1.65409277,674.21,673.75,1.459]
[1752173209399,1.65409277,674.18,673.75,1.459]
[1752173210098,1.65409277,674.18,673.49,1.66112119]
[1752173210399,1.65409277,674.19,673.48,1.66112119]
[1752173212203,1.65409277,674.19,673.47,1.66112119]
[1752173212404,1.65409277,674.2,673.47,1.66112119]
[1752173213104,1.65409277,674.19,673.48,1.66112119]
[1752173214205,1.65409277,674.2,673.49,1.231]
[1752173215009,1.65409277,674.18,673.5,1.66112119]
[1752173215206,1.65409277,674.17,673.51,1.66112119]
[1752173215509,1.65409277,674.17,673.5,1.66112119]
[1752173215709,1.65409277,674.17,673.51,1.66112119]
[1752173216308,1.65409277,674.17,673.5,1.66112119]
[1752173217211,1.65409277,674.18,673.5,1.66112119]
[1752173218704,1.65409277,674.18,673.49,2.89212119]
[1752173219204,1.23795452,674.3,673.49,1.231]
[1752173219409,1.65437693,674.19,673.49,1.231]
[1752173219807,1.65437693,674.18,673.49,1.231]
[1752173220412,1.65437693,674.16,673.49,1.231]
[1752173220606,1.65437693,674.13,673.49,1.231]
[1752173221112,1.65437693,674.12,673.49,1.231]
[1752173221312,1.65437693,674.08,673.49,1.231]
[1752173224208,1.23795452,674.2,673.49,1.231]
[1752173224209,1.65437693,674.09,673.49,1.231]
[1752173225713,1.65437693,674.1,673.49,1.231]
[1752173228218,1.65437693,674.11,673.49,1.231]
[1752173229912,1.65437693,674.14,673.49,1.231]
[1752173230616,1.65437693,674.2,673.49,1.231]
[1752173230816,1.23795452,674.28,673.49,1.231]
[1752173230817,1.65437693,674.23,673.49,1.231]
[1752173232620,1.65437693,674.24,673.49,1.231]
[1752173233917,1.65437693,674.21,673.49,1.231]
[1752173236622,1.65437693,674.22,673.49,1.231]
[1752173238424,1.65437693,674.18,673.49,1.231]
[1752173238721,1.65437693,674.16,673.49,1.231]
[1752173239321,1.65437693,674.15,673.49,1.231]
[1752173239825,1.65437693,674.21,673.49,1.231]
[1752173240022,1.65437693,674.22,673.49,1.231]
[1752173240221,1.65437693,674.23,673.49,1.231]
[1752173240626,1.65437693,674.27,673.49,1.231]
[1752173241928,1.65437693,674.3,673.49,1.231]
[1752173244324,1.65437693,674.32,673.49,1.231]
[1752173245230,1.65437693,674.33,673.48,1.66182578]
[1752173245628,1.65437693,674.32,673.49,1.66182578]
[1752173246129,1.65437693,674.32,673.5,1.66182578]
[1752173246328,1.65437693,674.33,673.49,1.66182578]
[1752173246525,1.65437693,674.37,673.54,1.66182578]
[1752173247829,1.65437693,674.39,673.57,1.66182578]
[1752173248429,1.65437693,674.39,673.58,1.285]
[1752173249026,1.65437693,674.39,673.58,2.94682578]
[1752173249330,1.65437693,674.38,673.58,2.94682578]
[1752173249528,1.65437693,674.37,673.61,1.66182578]
[1752173251227,1.65437693,674.37,673.62,1.66182578]
[1752173252132,0.258143,674.43,673.58,1.285]
[1752173252333,1.65518614,674.37,673.62,1.66096441]
[1752173253529,1.65518614,674.37,673.61,1.66096441]
[1752173253931,1.65518614,674.37,673.58,1.285]
[1752173253932,0.258143,674.43,673.68,1.66096441]
[1752173254934,1.91332914,674.43,673.68,1.66096441]
[1752173255130,1.91332914,674.43,673.69,1.66096441]
[1752173258136,0.258143,674.43,673.67,1.66096441]
[1752173259232,0.258143,674.43,673.66,1.66096441]
[1752173259437,0.258143,674.43,673.67,1.66096441]
[1752173260636,0.258143,674.43,673.68,1.66096441]
[1752173261335,0.258143,674.43,673.67,1.66096441]
[1752173262234,0.258143,674.43,673.66,1.66096441]
[1752173263035,1.65518614,674.45,673.66,1.66096441]
[1752173263239,1.65518614,674.47,673.62,1.66096441]
[1752173263441,1.65518614,674.48,673.63,1.66096441]
[1752173263838,1.65518614,674.57,673.72,1.66096441]
[1752173264239,1.65518614,674.58,673.71,1.66096441]
[1752173265140,0.2581028,674.6,673.58,1.285]
[1752173265337,1.65438044,674.59,673.7,1.65880947]
[1752173266443,1.65438044,674.59,673.69,1.65880947]
[1752173267338,1.65438044,674.58,673.71,1.65880947]
[1752173268142,1.65438044,674.58,673.55,2.21203397]
[1752173268143,1.65438044,674.58,673.7,1.65880947]
[1752173269245,1.65438044,674.59,673.69,1.65880947]
[1752173269645,1.65438044,674.59,673.7,1.408]
[1752173271245,1.91248324,674.6,673.7,1.408]
[1752173271739,0.2581028,674.6,673.7,1.408]
[1752173274152,1.65438044,674.58,673.7,1.408]
[1752173274349,1.65438044,674.52,673.7,1.408]
[1752173276053,1.65438044,674.51,673.7,1.408]
[1752173277849,1.65438044,674.47,673.7,1.408]
[1752173281761,1.65438044,674.44,673.7,1.408]
[1752173282856,1.65438044,674.44,673.55,1.65880947]
[1752173283555,1.65438044,674.43,673.56,1.65880947]
[1752173283860,2.2137822,674.57,673.43,2.47021815]
[1752173284061,1.65171868,674.51,673.44,1.65694193]
[1752173284261,1.65171868,674.51,673.43,0.25818418]
[1752173284461,1.65171868,674.52,673.43,0.25818418]
[1752173284662,1.65171868,674.51,673.43,0.25818418]
[1752173284961,1.65171868,674.48,673.43,0.25818418]
[1752173285163,1.65171868,674.42,673.44,1.65694193]
[1752173285357,1.65171868,674.37,673.44,1.378]
[1752173285561,1.65171868,674.32,673.44,1.378]
[1752173286463,1.65171868,674.31,673.44,1.378]
[1752173286658,1.65171868,674.32,673.44,1.378]
[1752173287364,1.65171868,674.31,673.44,1.378]
[1752173288260,1.65171868,674.27,673.44,1.378]
[1752173288462,1.65171868,674.2,673.44,1.378]
[1752173289160,1.65171868,674.21,673.44,1.378]
[1752173289365,1.65171868,674.2,673.44,1.378]
[1752173294971,1.65171868,674.22,673.44,1.378]
[1752173295372,1.65171868,674.21,673.44,1.378]
[1752173295670,1.65171868,674.22,673.44,1.378]
[1752173295871,1.65171868,674.26,673.44,1.378]
[1752173296072,1.65171868,674.33,673.44,1.378]
[1752173297167,1.65171868,674.32,673.44,1.378]
[1752173299272,1.65171868,674.31,673.44,3.03494193]
[1752173301070,0.2581028,674.6,673.48,1.65694193]
[1752173301071,1.65171868,674.29,673.48,1.65694193]
[1752173301677,1.65171868,674.25,673.44,3.03494193]
[1752173305472,1.65171868,674.24,673.46,1.65694193]
[1752173306780,1.65171868,674.23,673.47,1.65694193]
[1752173308281,1.65171868,674.24,673.46,1.65694193]
[1752173310783,1.65171868,674.22,673.49,1.65694193]
[1752173311282,1.65171868,674.22,673.48,1.65694193]
[1752173311680,1.65406578,674.22,673.49,1.65988214]
[1752173312282,1.65406578,674.25,673.45,1.65988214]
[1752173313682,1.65406578,674.31,673.44,1.378]
[1752173313983,1.65406578,674.33,673.44,1.378]
[1752173314888,1.65406578,674.24,673.44,1.378]
[1752173315090,1.65406578,674.2,673.44,1.378]
[1752173316291,1.23794935,674.36,673.44,1.378]
[1752173316292,1.65406578,674.19,673.44,1.378]
[1752173317188,1.65406578,674.2,673.44,1.378]
[1752173320894,1.65406578,674.18,673.44,1.378]
[1752173321891,1.65406578,674.2,673.44,1.378]
[1752173324691,1.65406578,674.29,673.44,1.378]
[1752173325189,1.65406578,674.28,673.44,1.378]
[1752173328296,1.65406578,674.23,673.44,1.378]
[1752173328996,1.65406578,674.17,673.44,1.378]
[1752173331202,1.65406578,674.16,673.44,1.378]
[1752173332601,1.65406578,674.17,673.44,1.378]
[1752173332801,1.65406578,674.19,673.44,1.378]
[1752173333302,1.65406578,674.18,673.44,1.378]
[1752173334609,1.65406578,674.11,673.44,1.378]
[1752173336311,1.65406578,674.1,673.44,1.378]
[1752173336906,1.65406578,674.08,673.44,1.378]
[1752173338406,1.65406578,674.08,673.3,1.91813817]
[1752173339111,1.65406578,674.02,673.39,1.65988214]
[1752173341013,1.65406578,674.09,673.3,0.25825603]
[1752173341610,1.65406578,674.1,673.3,0.25825603]
[1752173341813,1.65406578,674.1,673.31,1.416]
[1752173342309,1.65406578,674.09,673.31,1.416]
[1752173343214,1.65406578,674.14,673.36,1.65988214]
[1752173343719,1.65406578,674.15,673.35,1.65988214]
[1752173344528,1.65406578,674.14,673.36,1.65988214]
[1752173345012,1.65406578,674.14,673.35,1.65988214]
[1752173345416,1.65406578,674.14,673.36,1.65988214]
[1752173345614,1.65406578,674.13,673.36,1.65988214]
[1752173345812,1.65406578,674.19,673.41,1.65988214]
[1752173346016,1.65406578,674.16,673.45,1.65988214]
[1752173346613,1.65406578,674.16,673.46,1.65988214]
[1752173346816,1.65406578,674.15,673.46,1.65988214]
[1752173347113,1.65406578,674.15,673.47,1.65988214]
[1752173349919,1.65406578,674.14,673.48,1.65988214]
[1752173353717,1.65406578,674.13,673.5,1.65988214]
[1752173354117,1.65406578,674.14,673.49,1.65988214]
[1752173355419,1.65406578,674.13,673.49,1.65988214]
[1752173355719,1.65406578,674.13,673.5,1.65988214]
[1752173357420,1.65406578,674.13,673.51,1.65988214]
[1752173357625,1.65406578,674.12,673.51,1.65988214]
[1752173358223,1.65406578,674.13,673.5,1.65988214]
[1752173360728,1.65406578,674.14,673.51,1.65988214]
[1752173361323,1.65406578,674.13,673.52,1.65988214]
[1752173362427,1.65406578,674.13,673.53,1.65988214]
[1752173363825,1.23728244,674.26,673.54,1.65988214]
[1752173363826,1.65406578,674.12,673.54,1.65988214]
[1752173364227,1.65406578,674.11,673.54,1.65988214]
[1752173364930,1.65406578,674.17,673.48,1.65988214]
[1752173365332,1.65406578,674.21,673.52,1.65988214]
[1752173365632,1.65406578,674.24,673.54,1.65988214]
[1752173365932,1.65406578,674.3,673.6,1.65988214]
[1752173366132,1.65406578,674.3,673.61,1.65988214]
[1752173366333,1.65406578,674.3,673.6,1.65988214]
[1752173367431,1.65406578,674.31,673.6,1.65988214]
[1752173367834,1.65406578,674.3,673.6,1.65988214]
[1752173368434,2.2137822,674.48,673.6,1.65988214]
[1752173368435,1.65406578,674.31,673.6,1.65988214]
[1752173369334,1.65406578,674.31,673.59,1.65988214]
[1752173369731,1.65406578,674.32,673.6,1.65988214]
[1752173369933,1.65406578,674.31,673.59,1.65988214]
[1752173370129,1.65406578,674.32,673.6,1.65988214]
[1752173370330,1.65406578,674.32,673.59,1.65988214]
[1752173371031,1.65406578,674.33,673.59,1.65988214]
[1752173371432,1.65406578,674.33,673.58,1.65988214]
[1752173372835,1.65406578,674.34,673.58,1.65988214]
[1752173373135,1.65406578,674.3,673.64,1.65988214]
[1752173373332,1.65406578,674.3,673.63,1.65988214]
[1752173374233,1.65406578,674.31,673.63,1.65988214]
[1752173374842,1.65716664,674.35,673.57,1.66241396]
[1752173375537,1.65716664,674.35,673.56,1.66241396]
[1752173375836,1.65716664,674.35,673.57,1.66241396]
[1752173376040,1.23923625,674.52,673.65,1.66241396]
[1752173376041,1.65716664,674.43,673.65,1.66241396]
[1752173376441,1.65716664,674.44,673.64,1.66241396]
[1752173377342,0.2581028,674.6,673.31,1.416]
[1752173377343,1.65716664,674.45,673.63,1.66241396]
[1752173377740,1.65716664,674.45,673.64,1.66241396]
[1752173378243,1.65716664,674.48,673.59,1.66241396]
[1752173379240,1.65716664,674.56,673.66,1.66241396]
[1752173379444,1.65716664,674.56,673.65,1.66241396]
[1752173380241,0.2581028,674.6,673.63,1.66241396]
[1752173380242,1.65716664,674.57,673.63,1.66241396]
[1752173380545,0.2581028,674.6,673.43,2.21203397]
[1752173380742,1.65539791,674.57,673.63,1.65951152]
[1752173381345,1.65539791,674.58,673.62,1.65951152]
[1752173382446,1.65539791,674.58,673.61,1.65951152]
[1752173382847,1.65539791,674.56,673.64,1.65951152]
[1752173383043,1.65539791,674.56,673.65,1.65951152]
[1752173383343,1.65539791,674.57,673.64,1.65951152]
[1752173383743,1.65539791,674.56,673.63,1.65951152]
[1752173384348,1.65539791,674.57,673.63,1.65951152]
[1752173384548,0.2581028,674.6,673.46,1.65951152]
[1752173385547,0.2581028,674.6,673.45,1.65951152]
[1752173387050,0.2581028,674.6,673.58,1.65951152]
[1752173387450,0.2581028,674.6,673.56,1.65951152]
[1752173387645,0.2581028,674.6,673.59,1.65951152]
[1752173388450,0.2581028,674.6,673.58,1.65951152]
[1752173389350,0.2581028,674.6,673.57,1.65951152]
[1752173390348,0.2581028,674.6,673.51,1.65951152]
[1752173390548,0.2581028,674.6,673.55,1.65951152]
[1752173390951,0.2581028,674.6,673.72,1.65951152]
[1752173391152,0.2581028,674.6,673.73,1.65951152]
[1752173391354,0.2581028,674.6,673.72,1.65951152]
[1752173393055,0.2581028,674.6,673.68,1.65951152]
[1752173396958,0.2581028,674.6,673.67,1.65951152]
[1752173398355,0.2581028,674.6,673.68,1.65951152]
[1752173400657,0.2581028,674.6,673.63,1.65951152]
[1752173401563,0.2581028,674.6,673.67,1.65951152]
[1752173402160,0.2581028,674.6,673.68,1.732]
[1752173402559,0.2581028,674.6,673.68,3.39151152]
[1752173402959,0.2581028,674.6,673.68,1.732]
[1752173403164,0.2581028,674.6,673.71,1.65951152]
[1752173405266,0.2581028,674.6,673.7,1.65951152]
[1752173405464,0.2581028,674.6,673.68,1.732]
[1752173405465,0.2581028,674.6,673.71,1.65951152]
[1752173405661,0.2581028,674.6,673.76,1.65951152]
[1752173406367,0.2581028,674.6,673.72,1.65951152]
[1752173406764,1.65539791,674.71,673.72,1.65951152]
[1752173406965,0.25805112,674.67,673.73,1.65951152]
[1752173408664,0.25805112,674.67,673.74,1.65951152]
[1752173409468,0.25805112,674.67,673.75,1.65951152]
[1752173409764,0.25805112,674.67,673.68,1.732]
[1752173409765,0.25805112,674.67,673.81,1.65951152]
[1752173410369,0.25805112,674.67,673.8,1.65951152]